[Event "Kupreichik Memorial Rapid 2019"]
[Site "Minsk"]
[Date "2019.08.15"]
[Round "1.1"]
[White "Safarli, Eltaj"]
[Black "Oblamski, Vladimir"]
[Result "1-0"]
[ECO "B01"]
[WhiteElo "2593"]
[BlackElo "2088"]
[Annotator "ChessBase"]
[PlyCount "41"]
[EventDate "2019.08.15"]
[EventType "swiss"]
[EventCountry "BLR"]
[SourceTitle "playchess.com"]
[Source "ChessBase"]
[SourceQuality "1"]
[TimeControl "900+10"]

1. e4 {[%emt 0:00:00]} d5 {[%emt 0:00:00]} 2. exd5 {[%emt 0:00:00]} Qxd5 {[%emt 0:00:00]} 3. Nc3 {[%emt 0:00:00]} Qa5 {[%emt 0:00:00]} 4. g3 {[%emt 0:00:01]} Nf6 {[%emt 0:00:06]} 5. Bg2 {[%emt 0:00:03]} e5 {[%emt 0:00:23]} 6. Nge2 {[%emt 0:00:09]} Nc6 {[%emt 0:00:49]} 7. O-O {[%emt 0:00:07]} Be7 {[%emt 0:01:52]} 8. a3 {[%emt 0:00:47]} O-O {[%emt 0:00:11]} 9. Rb1 {[%emt 0:00:14]} Qc5 {[%emt 0:01:27]} 10. d3 {[%emt 0:00:31]} a6 {[%emt 0:01:29]} 11. h3 {[%emt 0:02:56]} h6 {[%emt 0:01:36]} 12. g4 {[%emt 0:00:17]} Be6 {[%emt 0:00:44]} 13. Be3 {[%emt 0:00:20]} Qd6 {[%emt 0:00:29]} 14. f4 {[%emt 0:00:42]} Nd5 {[%emt 0:01:21]} 15. Nxd5 {[%emt 0:00:28]} Bxd5 {[%emt 0:00:02]} 16. Bxd5 {[%emt 0:00:09]} Qxd5 {[%emt 0:00:01]} 17. Nc3 {[%emt 0:00:04]} Qd7 {[%emt 0:01:59]} 18. f5 {[%emt 0:00:04]} f6 {[%emt 0:00:31]} 19. Qf3 {[%emt 0:00:13]} Nd4 {[%emt 0:00:29]} 20. Qxb7 {[%emt 0:01:14]} Nxc2 {[%emt 0:00:42]} 21. Qb3+ {[%emt 0:00:04]} 1-0

[Event "Kupreichik Memorial Rapid 2019"]
[Site "Minsk"]
[Date "2019.08.15"]
[Round "1.5"]
[White "Aleksandrov, Aleksej"]
[Black "Khrapko, Marharyta"]
[Result "1-0"]
[ECO "E48"]
[WhiteElo "2571"]
[BlackElo "2073"]
[Annotator "ChessBase"]
[PlyCount "55"]
[EventDate "2019.08.15"]
[EventType "swiss"]
[EventCountry "BLR"]
[SourceTitle "playchess.com"]
[Source "ChessBase"]
[SourceQuality "1"]
[TimeControl "900+10"]

1. d4 {[%emt 0:00:00]} e6 {[%emt 0:00:00]} 2. c4 {[%emt 0:00:00]} Nf6 {[%emt 0:00:00]} 3. Nc3 {[%emt 0:00:00]} Bb4 {[%emt 0:00:00]} 4. e3 {[%emt 0:00:00]} O-O {[%emt 0:00:02]} 5. Bd3 {[%emt 0:00:00]} d5 {[%emt 0:00:04]} 6. cxd5 {[%emt 0:00:06]} exd5 {[%emt 0:00:15]} 7. Nge2 {[%emt 0:00:01]} c5 {[%emt 0:00:51]} 8. a3 {[%emt 0:00:03]} Ba5 {[%emt 0:00:37]} 9. dxc5 {[%emt 0:00:06]} Bxc3+ {[%emt 0:00:03]} 10. Nxc3 {[%emt 0:00:02]} a5 {[%emt 0:00:21]} 11. Rb1 {[%emt 0:00:17]} Bg4 {[%emt 0:00:27]} 12. f3 {[%emt 0:00:16]} Be6 {[%emt 0:00:25]} 13. b4 {[%emt 0:00:07]} Nc6 {[%emt 0:00:24]} 14. Ne2 {[%emt 0:00:27]} Re8 {[%emt 0:01:28]} 15. O-O {[%emt 0:00:03]} d4 {[%emt 0:01:02]} 16. e4 {[%emt 0:00:07]} axb4 {[%emt 0:00:47]} 17. axb4 {[%emt 0:00:01]} Ba2 {[%emt 0:00:07]} 18. Rb2 {[%emt 0:00:02]} Ne5 {[%emt 0:00:04]} 19. Bf4 {[%emt 0:00:57]} Nfd7 {[%emt 0:04:19]} 20. Rd2 {[%emt 0:01:07]} b6 {[%emt 0:00:42]} 21. Bxe5 {[%emt 0:00:17]} Rxe5 {[%emt 0:01:40]} 22. Nxd4 {[%emt 0:00:05]} bxc5 {[%emt 0:01:41]} 23. Nc6 {[%emt 0:00:07]} Qb6 {[%emt 0:00:01]} 24. Nxe5 {[%emt 0:00:06]} c4+ {[%emt 0:00:02]} 25. Kh1 {[%emt 0:00:09]} Nxe5 {[%emt 0:00:01]} 26. Bc2 {[%emt 0:00:25]} h5 {[%emt 0:00:28]} 27. Rd5 {[%emt 0:00:16]} f6 {[%emt 0:00:47]} 28. Rxe5 {[%emt 0:00:05]} 1-0

[Event "Kupreichik Memorial Rapid 2019"]
[Site "Minsk"]
[Date "2019.08.15"]
[Round "1.6"]
[White "Spizharny, Mikhail"]
[Black "Sychev, Klementy"]
[Result "0-1"]
[ECO "B40"]
[WhiteElo "2079"]
[BlackElo "2579"]
[Annotator "ChessBase"]
[PlyCount "60"]
[EventDate "2019.08.15"]
[EventType "swiss"]
[EventCountry "BLR"]
[SourceTitle "playchess.com"]
[Source "ChessBase"]
[SourceQuality "1"]
[TimeControl "900+10"]

1. e4 {[%emt 0:00:00]} c5 {[%emt 0:00:00]} 2. Nf3 {[%emt 0:00:00]} e6 {[%emt 0:00:00]} 3. b3 {[%emt 0:00:00]} a6 {[%emt 0:00:14]} 4. Bb2 {[%emt 0:00:04]} Nc6 {[%emt 0:00:01]} 5. a3 {[%emt 0:00:45]} Qc7 {[%emt 0:00:57]} 6. Bd3 {[%emt 0:00:09]} Nf6 {[%emt 0:00:12]} 7. O-O {[%emt 0:00:56]} Bd6 {[%emt 0:02:10]} 8. c3 {[%emt 0:01:39]} b5 {[%emt 0:00:33]} 9. Qe2 {[%emt 0:01:29]} Bb7 {[%emt 0:00:34]} 10. Bc2 {[%emt 0:01:07]} Ne5 {[%emt 0:01:03]} 11. Nxe5 {[%emt 0:00:35]} Bxe5 {[%emt 0:00:02]} 12. g3 {[%emt 0:01:38]} c4 {[%emt 0:00:11]} 13. d4 {[%emt 0:01:04]} cxd3 {[%emt 0:00:03]} 14. Bxd3 {[%emt 0:00:01]} O-O {[%emt 0:00:32]} 15. Nd2 {[%emt 0:00:32]} d5 {[%emt 0:00:14]} 16. Rac1 {[%emt 0:02:52]} Rfd8 {[%emt 0:00:22]} 17. exd5 {[%emt 0:00:50]} Rxd5 {[%emt 0:01:41]} 18. Nf3 {[%emt 0:00:57]} Qc6 {[%emt 0:01:12]} 19. Rfd1 {[%emt 0:01:30]} Rad8 {[%emt 0:01:30]} 20. Bc2 {[%emt 0:00:48]} Rxd1+ {[%emt 0:00:52]} 21. Bxd1 {[%emt 0:00:33]} h5 {[%emt 0:01:43]} 22. Qxe5 {[%emt 0:00:37]} Rxd1+ {[%emt 0:00:07]} 23. Rxd1 {[%emt 0:00:02]} Qxf3 {[%emt 0:00:03]} 24. Rd8+ {[%emt 0:00:09]} Kh7 {[%emt 0:00:03]} 25. Kf1 {[%emt 0:00:03]} Qh1+ {[%emt 0:00:29]} 26. Ke2 {[%emt 0:00:01]} Bf3+ {[%emt 0:00:03]} 27. Kd2 {[%emt 0:00:35]} Qd1+ {[%emt 0:00:04]} 28. Ke3 {[%emt 0:00:02]} Qe2+ {[%emt 0:00:35]} 29. Kf4 {[%emt 0:00:31]} g5+ {[%emt 0:00:09]} 30. Qxg5 {[%emt 0:00:15]} Qe4# {[%emt 0:00:02]} 0-1

[Event "Kupreichik Memorial Rapid 2019"]
[Site "Minsk"]
[Date "2019.08.15"]
[Round "1.16"]
[White "Kolosovskaya, Olga"]
[Black "Mikhailovsky, Vladimir"]
[Result "0-1"]
[ECO "C40"]
[WhiteElo "1719"]
[BlackElo "2209"]
[Annotator "NA"]
[PlyCount "50"]
[EventDate "2019.08.15"]
[EventType "swiss"]
[EventCountry "BLR"]
[SourceTitle "playchess.com"]
[Source "ChessBase"]
[SourceQuality "1"]
[TimeControl "900+10"]

1. e4 {[%emt 0:00:00]} e5 {[%emt 0:00:00]} 2. Nf3 {[%emt 0:00:00]} d5 {[%emt 0:00:00]} 3. d3 {[%emt 0:00:11]} Nc6 {[%emt 0:00:01]} 4. Be2 {[%emt 0:00:12]} Nf6 {[%emt 0:00:10]} 5. exd5 {[%emt 0:00:28]} Nxd5 {[%emt 0:00:12]} 6. O-O {[%emt 0:00:04]} Be7 {[%emt 0:01:43]} 7. Nc3 {[%emt 0:01:01]} Be6 {[%emt 0:00:14]} 8. Nxd5 {[%emt 0:03:46]} Bxd5 {[%emt 0:00:40]} 9. c4 {[%emt 0:00:08]} Be6 {[%emt 0:00:12]} 10. a3 {[%emt 0:01:25]} g5 {[%emt 0:00:49]} 11. b4 {[%emt 0:03:54]} g4 {[%emt 0:00:17]} 12. Nd2 {[%emt 0:00:01]} h5 {[%emt 0:00:23]} 13. Nb3 {[%emt 0:00:31]} Qd7 {[%emt 0:00:51]} 14. Bb2 {[%emt 0:02:00]} O-O-O {[%emt 0:01:08]} 15. b5 {[%emt 0:00:02]} Nd4 {[%emt 0:00:08]} 16. Nxd4 {[%emt 0:00:09]} exd4 {[%emt 0:00:03]} 17. Qa4 {[%emt 0:00:33]} Bc5 {[%emt 0:00:36]} 18. Rfe1 {[%emt 0:00:18]} h4 {[%emt 0:01:00]} 19. Bf1 {[%emt 0:00:02]} g3 {[%emt 0:00:53]} 20. fxg3 {[%emt 0:01:04]} hxg3 {[%emt 0:00:04]} 21. hxg3 {[%emt 0:01:15]} Qd6 {[%emt 0:00:31]} 22. Re4 {[%emt 0:00:23]} Qxg3 {[%emt 0:00:17]} 23. Rae1 {[%emt 0:00:07]} Rh6 {[%emt 0:00:24]} 24. Bc1 {[%emt 0:00:18]} Rf6 {[%emt 0:00:34]} 25. Qc2 {[%emt 0:00:18]} Bd6 {[%emt 0:00:33]} 0-1

[Event "Kupreichik Memorial Rapid 2019"]
[Site "Minsk"]
[Date "2019.08.15"]
[Round "1.17"]
[White "Veremeichik, Vladimir"]
[Black "Stsepkina, Yauheniya"]
[Result "1-0"]
[ECO "D84"]
[WhiteElo "2282"]
[BlackElo "1537"]
[Annotator "NA"]
[PlyCount "99"]
[EventDate "2019.08.15"]
[EventType "swiss"]
[EventCountry "BLR"]
[SourceTitle "playchess.com"]
[Source "ChessBase"]
[SourceQuality "1"]
[TimeControl "900+10"]

1. d4 {[%emt 0:00:00]} Nf6 {[%emt 0:00:00]} 2. c4 {[%emt 0:00:00]} g6 {[%emt 0:00:00]} 3. Nc3 {[%emt 0:00:00]} d5 {[%emt 0:00:00]} 4. Bf4 {[%emt 0:00:00]} Bg7 {[%emt 0:00:00]} 5. e3 {[%emt 0:00:00]} O-O {[%emt 0:00:03]} 6. cxd5 {[%emt 0:00:00]} Nxd5 {[%emt 0:00:01]} 7. Nxd5 {[%emt 0:00:00]} Qxd5 {[%emt 0:00:02]} 8. Bxc7 {[%emt 0:00:01]} b6 {[%emt 0:02:55]} 9. Ne2 {[%emt 0:01:08]} Bb7 {[%emt 0:00:25]} 10. Nc3 {[%emt 0:00:12]} Qd7 {[%emt 0:00:01]} 11. Bg3 {[%emt 0:00:15]} Rd8 {[%emt 0:00:27]} 12. Qc2 {[%emt 0:04:53]} Nc6 {[%emt 0:04:53]} 13. Be2 {[%emt 0:02:11]} Rac8 {[%emt 0:00:46]} 14. Rd1 {[%emt 0:01:32]} Nb4 {[%emt 0:03:06]} 15. Qb3 {[%emt 0:00:02]} Nd5 {[%emt 0:00:12]} 16. O-O {[%emt 0:00:32]} e6 {[%emt 0:00:26]} 17. Rc1 {[%emt 0:00:45]} Nxc3 {[%emt 0:02:43]} 18. bxc3 {[%emt 0:00:15]} Qe7 {[%emt 0:00:42]} 19. c4 {[%emt 0:01:20]} Bf6 {[%emt 0:00:40]} 20. a4 {[%emt 0:00:47]} Bh4 {[%emt 0:00:40]} 21. Rfd1 {[%emt 0:00:31]} Bxg3 {[%emt 0:00:02]} 22. hxg3 {[%emt 0:00:01]} Qc7 {[%emt 0:00:17]} 23. Qa3 {[%emt 0:00:44]} Bc6 {[%emt 0:00:16]} 24. Ra1 {[%emt 0:01:00]} Qb7 {[%emt 0:00:06]} 25. Bf1 {[%emt 0:00:08]} Rc7 {[%emt 0:00:13]} 26. a5 {[%emt 0:00:02]} Rdd7 {[%emt 0:00:09]} 27. axb6 {[%emt 0:00:07]} axb6 {[%emt 0:00:02]} 28. Qb4 {[%emt 0:00:11]} Rd8 {[%emt 0:00:05]} 29. Rdb1 {[%emt 0:00:23]} Rb8 {[%emt 0:00:06]} 30. Ra3 {[%emt 0:00:03]} Qc8 {[%emt 0:00:16]} 31. Rab3 {[%emt 0:00:11]} Rcb7 {[%emt 0:00:02]} 32. Qd6 {[%emt 0:00:04]} Qd7 {[%emt 0:00:27]} 33. Qxd7 {[%emt 0:00:05]} Bxd7 {[%emt 0:00:01]} 34. Be2 {[%emt 0:00:04]} Bc6 {[%emt 0:00:05]} 35. f3 {[%emt 0:00:01]} Kf8 {[%emt 0:00:04]} 36. e4 {[%emt 0:00:00]} Ke7 {[%emt 0:00:06]} 37. d5 {[%emt 0:00:01]} exd5 {[%emt 0:00:30]} 38. cxd5 {[%emt 0:00:03]} Bd7 {[%emt 0:00:03]} 39. Ba6 {[%emt 0:00:03]} Rc7 {[%emt 0:00:18]} 40. Rxb6 {[%emt 0:00:02]} Rxb6 {[%emt 0:00:14]} 41. Rxb6 {[%emt 0:00:01]} Rc1+ {[%emt 0:00:05]} 42. Kh2 {[%emt 0:00:02]} Rd1 {[%emt 0:00:04]} 43. g4 {[%emt 0:00:04]} Rd2 {[%emt 0:00:04]} 44. Kg3 {[%emt 0:00:01]} g5 {[%emt 0:00:17]} 45. Rb7 {[%emt 0:00:52]} Kd8 {[%emt 0:00:22]} 46. Bb5 {[%emt 0:00:05]} Bxb5 {[%emt 0:00:04]} 47. Rxb5 {[%emt 0:00:02]} Kc7 {[%emt 0:00:04]} 48. d6+ {[%emt 0:00:10]} Kxd6 {[%emt 0:00:06]} 49. Rxg5 {[%emt 0:00:02]} Ke6 {[%emt 0:00:26]} 50. Rh5 {[%emt 0:00:01] Kd5} 1-0

[Event "Kupreichik Memorial Rapid 2019"]
[Site "Minsk"]
[Date "2019.08.15"]
[Round "1.19"]
[White "Mochalov, Evgeny V"]
[Black "Kashtelyan, Valentin"]
[Result "1-0"]
[ECO "A43"]
[WhiteElo "2374"]
[BlackElo "1488"]
[Annotator "NA"]
[PlyCount "37"]
[EventDate "2019.08.15"]
[EventType "swiss"]
[EventCountry "BLR"]
[SourceTitle "playchess.com"]
[Source "ChessBase"]
[SourceQuality "1"]
[TimeControl "900+10"]

1. d4 {[%emt 0:00:00]} c5 {[%emt 0:00:15]} 2. d5 {[%emt 0:00:00]} e6 {[%emt 0:00:02]} 3. Nc3 {[%emt 0:00:00]} d6 {[%emt 0:00:05]} 4. e4 {[%emt 0:00:02]} Nf6 {[%emt 0:00:04]} 5. Nf3 {[%emt 0:00:17]} Be7 {[%emt 0:00:12]} 6. Bb5+ {[%emt 0:00:40]} Bd7 {[%emt 0:00:56]} 7. dxe6 {[%emt 0:00:31]} fxe6 {[%emt 0:00:40]} 8. e5 {[%emt 0:00:42]} dxe5 {[%emt 0:00:30]} 9. Nxe5 {[%emt 0:00:26]} Nc6 {[%emt 0:01:04]} 10. Nxc6 {[%emt 0:01:57]} Bxc6 {[%emt 0:00:13]} 11. Bxc6+ {[%emt 0:00:04]} bxc6 {[%emt 0:00:11]} 12. Qe2 {[%emt 0:00:52]} Qd7 {[%emt 0:01:11]} 13. O-O {[%emt 0:00:11]} O-O {[%emt 0:01:23]} 14. Re1 {[%emt 0:00:29]} Kf7 {[%emt 0:00:43]} 15. Bg5 {[%emt 0:00:50]} Rfe8 {[%emt 0:00:22]} 16. Rad1 {[%emt 0:00:22]} Qc8 {[%emt 0:01:35]} 17. Bxf6 {[%emt 0:01:15]} Bxf6 {[%emt 0:00:34]} 18. Ne4 {[%emt 0:00:10]} Bxb2 {[%emt 0:01:03]} 19. Nd6+ 1-0

[Event "Kupreichik Memorial Rapid 2019"]
[Site "Minsk"]
[Date "2019.08.15"]
[Round "1.21"]
[White "Pakhomov, Alexey"]
[Black "Arlou, Valery"]
[Result "1-0"]
[ECO "A40"]
[WhiteElo "2315"]
[BlackElo "1759"]
[Annotator "NA"]
[PlyCount "60"]
[EventDate "2019.08.15"]
[EventType "swiss"]
[EventCountry "BLR"]
[SourceTitle "playchess.com"]
[Source "ChessBase"]
[SourceQuality "1"]
[TimeControl "900+10"]

1. d4 {[%emt 0:00:00]} g6 {[%emt 0:00:00]} 2. Nf3 {[%emt 0:00:35]} Bg7 {[%emt 0:00:00]} 3. Bf4 {[%emt 0:00:03]} d6 {[%emt 0:00:00]} 4. e3 {[%emt 0:00:02]} Nf6 {[%emt 0:00:13]} 5. h3 {[%emt 0:00:01]} O-O {[%emt 0:00:13]} 6. Be2 {[%emt 0:00:01]} Nbd7 {[%emt 0:00:18]} 7. O-O {[%emt 0:00:06]} c5 {[%emt 0:00:05]} 8. c3 {[%emt 0:00:39]} a6 {[%emt 0:01:26]} 9. Nbd2 {[%emt 0:00:09]} b5 {[%emt 0:00:39]} 10. a4 {[%emt 0:01:02]} Rb8 {[%emt 0:01:24]} 11. axb5 {[%emt 0:02:39]} axb5 {[%emt 0:00:02]} 12. e4 {[%emt 0:00:11]} c4 {[%emt 0:01:12]} 13. Re1 {[%emt 0:00:15]} Bb7 {[%emt 0:00:23]} 14. Bf1 {[%emt 0:00:03]} Qb6 {[%emt 0:01:25]} 15. Bh2 {[%emt 0:00:53]} Ra8 {[%emt 0:00:24]} 16. Rb1 {[%emt 0:03:55]} Rfd8 {[%emt 0:00:30]} 17. b3 {[%emt 0:00:07]} Qa5 {[%emt 0:02:43]} 18. bxc4 {[%emt 0:01:01]} Qxc3 {[%emt 0:00:29]} 19. Rb3 {[%emt 0:00:13]} Qa5 {[%emt 0:00:51]} 20. Rxb5 {[%emt 0:00:34]} Qa7 {[%emt 0:00:04]} 21. Rb1 {[%emt 0:00:18]} Ba6 {[%emt 0:02:21]} 22. Ra1 {[%emt 0:00:42]} Qb6 {[%emt 0:00:43]} 23. Rb1 {[%emt 0:00:36]} Qa7 {[%emt 0:00:55]} 24. Qc2 {[%emt 0:01:54]} Rdc8 {[%emt 0:00:18]} 25. e5 {[%emt 0:01:14]} Ne8 {[%emt 0:00:08]} 26. exd6 {[%emt 0:00:11]} e6 {[%emt 0:01:29]} 27. c5 {[%emt 0:00:10]} Bb7 {[%emt 0:00:21]} 28. Ne5 {[%emt 0:00:20]} Nxe5 {[%emt 0:00:18]} 29. Bxe5 {[%emt 0:00:02]} Bxe5 30. d7 Bxd4 1-0

[Event "Kupreichik Memorial Rapid 2019"]
[Site "Minsk"]
[Date "2019.08.15"]
[Round "1.22"]
[White "Nikolaev, Dmitry"]
[Black "Kochetkov, Vitali"]
[Result "1-0"]
[ECO "A05"]
[WhiteElo "1677"]
[BlackElo "2266"]
[Annotator "NA"]
[PlyCount "75"]
[EventDate "2019.08.15"]
[EventType "swiss"]
[EventCountry "BLR"]
[SourceTitle "playchess.com"]
[Source "ChessBase"]
[SourceQuality "1"]
[TimeControl "900+10"]

1. Nf3 {[%emt 0:00:00]} Nf6 {[%emt 0:00:00]} 2. g3 {[%emt 0:00:03]} b5 {[%emt 0:00:34]} 3. Bg2 {[%emt 0:00:23]} Bb7 {[%emt 0:00:02]} 4. O-O {[%emt 0:00:09]} e6 {[%emt 0:00:07]} 5. b3 {[%emt 0:01:01]} Be7 {[%emt 0:00:10]} 6. d3 {[%emt 0:00:35]} d5 {[%emt 0:00:54]} 7. c4 {[%emt 0:02:36]} dxc4 {[%emt 0:01:33]} 8. bxc4 {[%emt 0:00:06]} bxc4 {[%emt 0:00:11]} 9. Qa4+ {[%emt 0:00:12]} Nbd7 {[%emt 0:00:36]} 10. Qxc4 {[%emt 0:00:02]} O-O {[%emt 0:00:23]} 11. Ba3 {[%emt 0:00:45]} Nb6 {[%emt 0:01:05]} 12. Qc2 {[%emt 0:02:21]} Rc8 {[%emt 0:00:37]} 13. Bxe7 {[%emt 0:00:19]} Qxe7 {[%emt 0:00:01]} 14. Nbd2 {[%emt 0:00:01]} Bd5 {[%emt 0:00:24]} 15. a4 {[%emt 0:00:24]} a5 {[%emt 0:00:35]} 16. Rfb1 {[%emt 0:01:50]} e5 {[%emt 0:00:58]} 17. e4 {[%emt 0:00:29]} Ba8 {[%emt 0:00:36]} 18. Rb5 {[%emt 0:00:02]} Nfd7 {[%emt 0:00:22]} 19. Nc4 {[%emt 0:00:59]} Nxc4 20. Qxc4 {[%emt 0:00:01]} c5 {[%emt 0:01:55]} 21. Rxa5 {[%emt 0:00:50]} Nb6 {[%emt 0:00:18]} 22. Qb5 {[%emt 0:01:37]} Qc7 {[%emt 0:00:38]} 23. Bh3 {[%emt 0:00:08]} Rcd8 {[%emt 0:01:09]} 24. Qxc5 {[%emt 0:00:44]} Qxc5 {[%emt 0:00:14]} 25. Rxc5 {[%emt 0:00:02]} Rxd3 {[%emt 0:00:18]} 26. Nxe5 {[%emt 0:00:16]} Rd4 {[%emt 0:01:22]} 27. a5 {[%emt 0:00:10]} Na4 {[%emt 0:00:26]} 28. Rc4 {[%emt 0:00:36]} Rxc4 {[%emt 0:00:21]} 29. Nxc4 {[%emt 0:00:01]} Nc3 {[%emt 0:00:06]} 30. f3 {[%emt 0:00:05]} g5 {[%emt 0:00:14]} 31. Kf2 {[%emt 0:00:25]} Rd8 {[%emt 0:00:29]} 32. Ke3 {[%emt 0:00:26]} Nd1+ {[%emt 0:00:18]} 33. Ke2 {[%emt 0:00:12]} Nc3+ {[%emt 0:00:02]} 34. Kf2 {[%emt 0:00:23]} h5 {[%emt 0:00:21]} 35. Bf1 {[%emt 0:00:34]} g4 {[%emt 0:00:31]} 36. Nb6 {[%emt 0:00:25]} gxf3 {[%emt 0:01:16]} 37. Nxa8 {[%emt 0:00:07]} Nxe4+ {[%emt 0:01:17]} 38. Ke3 {[%emt 0:00:16]} 1-0

[Event "Kupreichik Memorial Rapid 2019"]
[Site "Minsk"]
[Date "2019.08.15"]
[Round "1.24"]
[White "Kozlov, Valentin"]
[Black "Agapov, Sergey"]
[Result "0-1"]
[ECO "B01"]
[WhiteElo "1871"]
[BlackElo "2265"]
[Annotator "NA"]
[PlyCount "46"]
[EventDate "2019.08.15"]
[EventType "swiss"]
[EventCountry "BLR"]
[SourceTitle "playchess.com"]
[Source "ChessBase"]
[SourceQuality "1"]
[TimeControl "900+10"]

1. e4 {[%emt 0:00:00]} d5 {[%emt 0:00:00]} 2. exd5 {[%emt 0:00:00]} Qxd5 {[%emt 0:00:00]} 3. Nc3 {[%emt 0:00:00]} Qd6 {[%emt 0:00:00]} 4. d4 {[%emt 0:00:00]} Nf6 {[%emt 0:00:00]} 5. Nf3 {[%emt 0:00:03]} a6 {[%emt 0:00:00]} 6. Bd3 {[%emt 0:00:17]} Nc6 {[%emt 0:00:23]} 7. Be3 {[%emt 0:00:18]} Bg4 {[%emt 0:00:09]} 8. h3 {[%emt 0:00:49]} Bh5 {[%emt 0:00:03]} 9. g4 {[%emt 0:00:19]} Bg6 {[%emt 0:00:02]} 10. Bxg6 {[%emt 0:00:05]} hxg6 {[%emt 0:00:02]} 11. Qe2 {[%emt 0:00:38]} Nxg4 {[%emt 0:00:45]} 12. O-O-O {[%emt 0:00:26]} Nf6 {[%emt 0:00:19]} 13. Qd2 {[%emt 0:01:01]} Nd5 {[%emt 0:00:16]} 14. Ng5 {[%emt 0:00:51]} e6 {[%emt 0:01:24]} 15. Nge4 {[%emt 0:00:25]} Qd7 {[%emt 0:00:39]} 16. Nc5 {[%emt 0:00:35]} Bxc5 {[%emt 0:00:05]} 17. dxc5 {[%emt 0:00:02]} O-O-O {[%emt 0:00:04]} 18. Ne4 {[%emt 0:03:07]} Qe7 {[%emt 0:00:37]} 19. Ng5 {[%emt 0:00:38]} Nf4 {[%emt 0:01:10]} 20. Bxf4 {[%emt 0:01:07]} Rxd2 {[%emt 0:00:02]} 21. Rxd2 {[%emt 0:00:08]} Qxc5 {[%emt 0:01:04]} 22. Nxf7 {[%emt 0:00:40]} Rf8 {[%emt 0:00:18]} 23. Be3 {[%emt 0:00:02]} Qa5 {[%emt 0:00:02]} 0-1

[Event "Kupreichik Memorial Rapid 2019"]
[Site "Minsk"]
[Date "2019.08.15"]
[Round "1.26"]
[White "Pogorelov, Aleksey"]
[Black "Kochetkov, German"]
[Result "0-1"]
[ECO "A80"]
[WhiteElo "1548"]
[BlackElo "2277"]
[Annotator "NA"]
[PlyCount "76"]
[EventDate "2019.08.15"]
[EventType "swiss"]
[EventCountry "BLR"]
[SourceTitle "playchess.com"]
[Source "ChessBase"]
[SourceQuality "1"]
[TimeControl "900+10"]

1. d4 {[%emt 0:00:00]} f5 {[%emt 0:00:00]} 2. Bf4 {[%emt 0:00:00]} Nf6 {[%emt 0:00:00]} 3. Nf3 {[%emt 0:00:02]} g6 {[%emt 0:00:00]} 4. e3 {[%emt 0:00:21]} Bg7 {[%emt 0:00:00]} 5. Nbd2 {[%emt 0:00:24]} O-O {[%emt 0:00:00]} 6. Be2 {[%emt 0:00:51]} d6 {[%emt 0:00:10]} 7. O-O {[%emt 0:00:31]} Nc6 {[%emt 0:00:05]} 8. c3 {[%emt 0:00:33]} Qe8 {[%emt 0:00:49]} 9. Bb5 {[%emt 0:02:19]} Bd7 {[%emt 0:01:30]} 10. Bxc6 {[%emt 0:01:25]} Bxc6 {[%emt 0:00:03]} 11. Re1 {[%emt 0:00:28]} Nh5 {[%emt 0:02:53]} 12. Qb3+ {[%emt 0:01:20]} e6 {[%emt 0:00:38]} 13. Bg3 {[%emt 0:00:46]} h6 {[%emt 0:01:37]} 14. h3 {[%emt 0:01:07]} g5 {[%emt 0:00:40]} 15. e4 f4 16. Bh2 {[%emt 0:01:56]} Qf7 {[%emt 0:01:59]} 17. c4 {[%emt 0:00:48]} b6 {[%emt 0:00:30]} 18. Rac1 {[%emt 0:01:16]} e5 {[%emt 0:00:15]} 19. d5 {[%emt 0:00:12]} Bd7 {[%emt 0:00:03]} 20. a3 {[%emt 0:00:53]} Bf6 {[%emt 0:00:03]} 21. Rc3 {[%emt 0:01:17]} Ng7 {[%emt 0:00:04]} 22. Nf1 {[%emt 0:01:01]} a5 {[%emt 0:00:02]} 23. Qc2 {[%emt 0:00:11]} a4 {[%emt 0:00:01]} 24. b3 {[%emt 0:00:24]} axb3 {[%emt 0:00:02]} 25. Qxb3 {[%emt 0:00:03]} h5 {[%emt 0:00:01]} 26. Qb2 {[%emt 0:00:11]} g4 {[%emt 0:00:13]} 27. hxg4 {[%emt 0:00:05]} hxg4 {[%emt 0:00:01]} 28. N3d2 {[%emt 0:00:07]} Qg6 {[%emt 0:01:00]} 29. Qc1 {[%emt 0:00:38]} Rf7 {[%emt 0:00:12]} 30. Qd1 {[%emt 0:00:20]} Bg5 {[%emt 0:00:16]} 31. Nb1 {[%emt 0:00:22]} Nh5 {[%emt 0:00:10]} 32. g3 {[%emt 0:00:12]} f3 {[%emt 0:00:05]} 33. Ne3 {[%emt 0:00:09]} Qxe4 {[%emt 0:00:10]} 34. Nc2 {[%emt 0:00:14]} Qg6 {[%emt 0:00:12]} 35. Qd3 {[%emt 0:00:09]} Bf5 {[%emt 0:00:07]} 36. Qd1 {[%emt 0:00:01]} Rh7 {[%emt 0:00:07]} 37. Rb3 {[%emt 0:00:17]} Nf6 {[%emt 0:00:02]} 38. Ne3 {[%emt 0:00:04]} Qh6 {[%emt 0:00:17]} 0-1

[Event "Kupreichik Memorial Rapid 2019"]
[Site "Minsk"]
[Date "2019.08.15"]
[Round "1.27"]
[White "Smirnov, Valerij"]
[Black "Strizhnev, Ivan"]
[Result "1-0"]
[ECO "E61"]
[WhiteElo "2261"]
[BlackElo "1394"]
[Annotator "NA"]
[PlyCount "34"]
[EventDate "2019.08.15"]
[EventType "swiss"]
[EventCountry "BLR"]
[SourceTitle "playchess.com"]
[Source "ChessBase"]
[SourceQuality "1"]
[TimeControl "900+10"]

1. d4 {[%emt 0:00:00]} Nf6 {[%emt 0:00:00]} 2. c4 {[%emt 0:00:00]} g6 {[%emt 0:00:00]} 3. Nc3 {[%emt 0:00:00]} Bg7 {[%emt 0:00:01]} 4. Bg5 {[%emt 0:00:04]} O-O {[%emt 0:00:07]} 5. Qd2 {[%emt 0:00:02]} Re8 {[%emt 0:00:42]} 6. Nf3 {[%emt 0:00:04]} d6 {[%emt 0:00:16]} 7. e4 {[%emt 0:00:04]} c5 {[%emt 0:00:52]} 8. Be2 {[%emt 0:00:52]} cxd4 {[%emt 0:00:18]} 9. Nxd4 {[%emt 0:00:03]} Nc6 {[%emt 0:00:07]} 10. Nc2 {[%emt 0:00:38]} a6 {[%emt 0:01:44]} 11. O-O {[%emt 0:00:08]} Qc7 {[%emt 0:00:57]} 12. Rac1 {[%emt 0:00:11]} e6 {[%emt 0:03:48]} 13. Rfd1 {[%emt 0:00:09]} Rd8 {[%emt 0:00:17]} 14. Qf4 {[%emt 0:00:27]} e5 {[%emt 0:01:15]} 15. Qh4 {[%emt 0:00:07]} Ne8 {[%emt 0:03:31]} 16. Nd5 {[%emt 0:00:06]} Qd7 {[%emt 0:00:27]} 17. Nb6 {[%emt 0:00:10]} Bf8 1-0